[Event "FIDE Women World Blitz 2021"]
[Site "Warsaw"]
[Date "2021.12.29"]
[Round "7.38"]
[White "Rakhmangulova, Anastasiya"]
[Black "Jarocka, Liwia"]
[Result "1/2-1/2"]
[ECO "B57"]
[WhiteElo "2174"]
[BlackElo "1851"]
[Annotator "NA"]
[PlyCount "151"]
[EventDate "2021.12.29"]
[EventType "swiss"]
[EventCountry "POL"]
[Tiebreak "Cut1 Buchholz"]
[SourceTitle "playchess.com"]
[Source "ChessBase"]
[SourceQuality "1"]
[TimeControl "180+2"]

1. e4 {[%emt 0:00:01]} c5 {[%emt 0:00:00]} 2. Nf3 {[%emt 0:00:01]} d6 {[%emt 0:
00:01]} 3. d4 {[%emt 0:00:01]} cxd4 {[%emt 0:00:01]} 4. Nxd4 {[%emt 0:00:01]}
Nf6 {[%emt 0:00:01]} 5. Nc3 {[%emt 0:00:01]} Nc6 {[%emt 0:00:01]} 6. Bc4 {
[%emt 0:00:02]} Qb6 {[%emt 0:00:02]} 7. Nb3 {[%emt 0:00:09]} e6 {[%emt 0:00:02]
} 8. Bf4 {[%emt 0:00:25]} Ne5 {[%emt 0:00:12]} 9. Bxe5 {[%emt 0:00:13]} dxe5 {
[%emt 0:00:03]} 10. Qf3 {[%emt 0:00:19]} Bb4 {[%emt 0:00:16]} 11. O-O {[%emt 0:
00:11]} Bd7 {[%emt 0:00:12]} 12. Qg3 {[%emt 0:00:42]} O-O {[%emt 0:00:28]} 13.
Qxe5 {[%emt 0:00:08]} Bxc3 {[%emt 0:00:07]} 14. bxc3 {[%emt 0:00:10]} Rac8 {
[%emt 0:00:01]} 15. Bd3 {[%emt 0:00:01]} Qc7 {[%emt 0:00:05]} 16. Qxc7 {
[%emt 0:00:12]} Rxc7 {[%emt 0:00:01]} 17. e5 {[%emt 0:00:01]} Nd5 {[%emt 0:00:
04]} 18. c4 {[%emt 0:00:02]} Nb6 {[%emt 0:00:08]} 19. Na5 {[%emt 0:00:10]} Na4
{[%emt 0:00:11]} 20. Rab1 {[%emt 0:00:07]} b6 {[%emt 0:00:02]} 21. Nb3 {
[%emt 0:00:02]} Nc5 {[%emt 0:00:09]} 22. Rfd1 {[%emt 0:00:02]} Ba4 {[%emt 0:00:
07]} 23. Bf1 {[%emt 0:00:01]} h6 {[%emt 0:00:12]} 24. Rd4 {[%emt 0:00:05]} Rd7
{[%emt 0:00:33]} 25. Rbd1 {[%emt 0:00:01]} Rfd8 {[%emt 0:00:07]} 26. Rd6 {
[%emt 0:00:05]} Rxd6 {[%emt 0:00:10]} 27. exd6 {[%emt 0:00:01]} Bxb3 {[%emt 0:
00:07]} 28. cxb3 {[%emt 0:00:10]} Nb7 {[%emt 0:00:01]} 29. c5 {[%emt 0:00:10]}
Nxc5 {[%emt 0:00:05]} 30. Bb5 {[%emt 0:00:04]} Nb7 {[%emt 0:00:03]} 31. d7 {
[%emt 0:00:01]} Kf8 {[%emt 0:00:01]} 32. Rc1 {[%emt 0:00:01]} Nc5 {[%emt 0:00:
09]} 33. b4 {[%emt 0:00:02]} Nxd7 {[%emt 0:00:02]} 34. g3 {[%emt 0:00:08]} Nb8
{[%emt 0:00:13]} 35. Rc7 {[%emt 0:00:02]} a6 {[%emt 0:00:01]} 36. Bc4 {[%emt 0:
00:05]} g6 {[%emt 0:00:01]} 37. Rb7 {[%emt 0:00:03]} b5 {[%emt 0:00:02]} 38.
Bb3 {[%emt 0:00:01]} Nc6 {[%emt 0:00:02]} 39. a3 {[%emt 0:00:02]} Nd4 {[%emt 0:
00:02]} 40. Bd1 {[%emt 0:00:03]} Nf5 {[%emt 0:00:05]} 41. Bf3 {[%emt 0:00:03]}
Rd3 {[%emt 0:00:04]} 42. Kg2 {[%emt 0:00:02]} Rxa3 {[%emt 0:00:01]} 43. Rb6 {
[%emt 0:00:03]} Ra4 {[%emt 0:00:03]} 44. Bb7 {[%emt 0:00:04]} Rxb4 {[%emt 0:00:
03]} 45. Bxa6 {[%emt 0:00:01]} Nd4 {[%emt 0:00:02]} 46. h4 {[%emt 0:00:03]} Kg7
{[%emt 0:00:02]} 47. Rd6 {[%emt 0:00:09]} e5 {[%emt 0:00:03]} 48. Bb7 {[%emt 0:
00:01]} Rb2 {[%emt 0:00:06]} 49. Bd5 {[%emt 0:00:00]} Nf5 {[%emt 0:00:01]} 50.
Rd7 {[%emt 0:00:01]} Ne3+ {[%emt 0:00:01]} 51. Kf3 {[%emt 0:00:02]} Nxd5 {
[%emt 0:00:01]} 52. Rxd5 {[%emt 0:00:01]} Kf6 {[%emt 0:00:01]} 53. Rd6+ {
[%emt 0:00:02]} Kg7 {[%emt 0:00:00]} 54. Rd5 {[%emt 0:00:01]} Rb3+ {[%emt 0:00:
01]} 55. Ke2 {[%emt 0:00:02]} e4 {[%emt 0:00:01]} 56. Re5 {[%emt 0:00:02]} f5 {
[%emt 0:00:01]} 57. Re6 {[%emt 0:00:04]} h5 {[%emt 0:00:01]} 58. Rb6 {[%emt 0:
00:02]} b4 {[%emt 0:00:00]} 59. Kd2 {[%emt 0:00:01]} Rf3 {[%emt 0:00:02]} 60.
Ke2 {[%emt 0:00:01]} Rb3 {[%emt 0:00:01]} 61. Kd2 {[%emt 0:00:03]} Rb2+ {
[%emt 0:00:01]} 62. Ke3 {[%emt 0:00:00]} b3 {[%emt 0:00:00]} 63. f3 {[%emt 0:
00:03]} exf3 {[%emt 0:00:03]} 64. Kxf3 {[%emt 0:00:00]} Rb1 {[%emt 0:00:00]}
65. Kf4 {[%emt 0:00:03]} Kh6 {[%emt 0:00:07]} 66. Ke5 {[%emt 0:00:07]} b2 {
[%emt 0:00:01]} 67. Kf6 {[%emt 0:00:01]} Rg1 {[%emt 0:00:03]} 68. Rxb2 {
[%emt 0:00:01]} Rxg3 {[%emt 0:00:01]} 69. Rb8 {[%emt 0:00:01]} Kh7 {[%emt 0:00:
03]} 70. Rb7+ {[%emt 0:00:01]} Kg8 {[%emt 0:00:03]} 71. Rb8+ {[%emt 0:00:01]}
Kh7 {[%emt 0:00:01]} 72. Rb7+ {[%emt 0:00:00]} Kh6 {[%emt 0:00:04]} 73. Rb8 {
[%emt 0:00:01]} Kh7 {[%emt 0:00:03]} 74. Rb7+ {[%emt 0:00:01]} Kh8 {[%emt 0:00:
01]} 75. Rb8+ {[%emt 0:00:01]} Kh7 {[%emt 0:00:02]} 76. Rb7+ {[%emt 0:00:01]}
1/2-1/2

[Event "FIDE Women World Blitz 2021"]
[Site "Warsaw"]
[Date "2021.12.29"]
[Round "7.39"]
[White "Zawadzka, Jolanta"]
[Black "Katkov, Michelle"]
[Result "1-0"]
[ECO "C77"]
[WhiteElo "2429"]
[BlackElo "1651"]
[Annotator "NA"]
[PlyCount "85"]
[EventDate "2021.12.29"]
[EventType "swiss"]
[EventCountry "POL"]
[Tiebreak "Cut1 Buchholz"]
[SourceTitle "playchess.com"]
[Source "ChessBase"]
[SourceQuality "1"]
[TimeControl "180+2"]

1. e4 {[%emt 0:00:01]} e5 {[%emt 0:00:01]} 2. Nf3 {[%emt 0:00:01]} Nc6 {
[%emt 0:00:01]} 3. Bb5 {[%emt 0:00:01]} a6 {[%emt 0:00:00]} 4. Ba4 {[%emt 0:00:
01]} Nf6 {[%emt 0:00:02]} 5. Nc3 {[%emt 0:00:01]} b5 {[%emt 0:00:13]} 6. Bb3 {
[%emt 0:00:01]} Bc5 {[%emt 0:00:01]} 7. O-O {[%emt 0:00:02]} O-O {[%emt 0:00:
02]} 8. Nd5 {[%emt 0:00:03]} d6 {[%emt 0:00:13]} 9. Nxf6+ {[%emt 0:00:27]} Qxf6
{[%emt 0:00:02]} 10. Bd5 {[%emt 0:00:01]} Bd7 {[%emt 0:00:12]} 11. c3 {[%emt 0:
00:13]} Rab8 {[%emt 0:00:21]} 12. h3 {[%emt 0:00:18]} Ne7 {[%emt 0:00:04]} 13.
d4 {[%emt 0:00:06]} Nxd5 {[%emt 0:00:11]} 14. dxc5 {[%emt 0:00:07]} Nf4 {
[%emt 0:00:05]} 15. Bxf4 {[%emt 0:00:01]} Qxf4 {[%emt 0:00:09]} 16. cxd6 {
[%emt 0:00:02]} cxd6 {[%emt 0:00:01]} 17. Qxd6 {[%emt 0:00:02]} Bxh3 {[%emt 0:
00:13]} 18. Qxe5 {[%emt 0:00:02]} Qxe5 {[%emt 0:00:16]} 19. Nxe5 {[%emt 0:00:
01]} Be6 {[%emt 0:00:01]} 20. Nc6 {[%emt 0:00:04]} Rb6 {[%emt 0:00:04]} 21. Nd4
{[%emt 0:00:01]} Bc4 {[%emt 0:00:04]} 22. Rfe1 {[%emt 0:00:03]} Rd8 {[%emt 0:
00:05]} 23. a3 {[%emt 0:00:02]} Rg6 {[%emt 0:00:17]} 24. f3 {[%emt 0:00:05]} h5
{[%emt 0:00:02]} 25. Rad1 {[%emt 0:00:03]} Rgd6 {[%emt 0:00:29]} 26. Kf2 {
[%emt 0:00:05]} g6 {[%emt 0:00:03]} 27. Ke3 {[%emt 0:00:27]} a5 {[%emt 0:00:01]
} 28. Rd2 {[%emt 0:00:17]} R6d7 {[%emt 0:00:10]} 29. Red1 {[%emt 0:00:03]} Kf8
{[%emt 0:00:06]} 30. Nc6 {[%emt 0:00:06]} Rxd2 {[%emt 0:00:04]} 31. Rxd2 {
[%emt 0:00:01]} Rxd2 {[%emt 0:00:09]} 32. Kxd2 {[%emt 0:00:01]} a4 {[%emt 0:00:
01]} 33. Ke3 {[%emt 0:00:02]} Ke8 {[%emt 0:00:01]} 34. g3 {[%emt 0:00:06]} Kf8
{[%emt 0:00:05]} 35. Kd4 {[%emt 0:00:00]} Kg7 {[%emt 0:00:03]} 36. f4 {[%emt 0:
00:00]} f6 {[%emt 0:00:01]} 37. e5 {[%emt 0:00:00]} g5 {[%emt 0:00:03]} 38. Ke4
{[%emt 0:00:00]} h4 {[%emt 0:00:07]} 39. exf6+ Kxf6 {[%emt 0:00:01]} 40. fxg5+
{[%emt 0:00:09]} Kxg5 {[%emt 0:00:02]} 41. gxh4+ Kxh4 {[%emt 0:00:00]} 42. Kd4
{[%emt 0:00:03]} Kg4 {[%emt 0:00:01]} 43. Ne5+ {[%emt 0:00:01]} 1-0

[Event "FIDE Women World Blitz 2021"]
[Site "Warsaw"]
[Date "2021.12.29"]
[Round "8.1"]
[White "Assaubayeva, Bibisara"]
[Black "Shuvalova, Polina"]
[Result "1-0"]
[ECO "D33"]
[WhiteElo "2400"]
[BlackElo "2515"]
[Annotator "ChessBase"]
[PlyCount "99"]
[EventDate "2021.12.29"]
[EventType "swiss"]
[EventCountry "POL"]
[Tiebreak "Cut1 Buchholz"]
[SourceTitle "playchess.com"]
[Source "ChessBase"]
[SourceQuality "1"]
[TimeControl "180+2"]

1. d4 {[%emt 0:00:01]} Nf6 {[%emt 0:00:02]} 2. c4 {[%emt 0:00:01]} e6 {[%emt 0:
00:02]} 3. Nf3 {[%emt 0:00:01]} d5 {[%emt 0:00:01]} 4. Nc3 {[%emt 0:00:01]} c5
{[%emt 0:00:01]} 5. cxd5 {[%emt 0:00:03]} exd5 {[%emt 0:00:02]} 6. g3 {[%emt 0:
00:04]} Nc6 {[%emt 0:00:01]} 7. Bg2 {[%emt 0:00:01]} cxd4 {[%emt 0:00:01]} 8.
Nxd4 {[%emt 0:00:01]} Bc5 {[%emt 0:00:02]} 9. Nb3 {[%emt 0:00:01]} Bb6 {
[%emt 0:00:01]} 10. O-O {[%emt 0:00:02]} d4 {[%emt 0:00:01]} 11. Na4 {[%emt 0:
00:01]} O-O {[%emt 0:00:02]} 12. Bg5 {[%emt 0:00:01]} Re8 {[%emt 0:00:01]} 13.
Nxb6 {[%emt 0:00:02]} axb6 {[%emt 0:00:03]} 14. e3 {[%emt 0:00:02]} d3 {
[%emt 0:00:05]} 15. Bxf6 {[%emt 0:00:02]} gxf6 {[%emt 0:00:12]} 16. a3 {
[%emt 0:00:01]} Bf5 {[%emt 0:00:05]} 17. Rc1 {[%emt 0:00:02]} Qd6 {[%emt 0:00:
16]} 18. Nd2 {[%emt 0:00:06]} b5 {[%emt 0:00:03]} 19. Qh5 {[%emt 0:00:08]} Re5
{[%emt 0:00:08]} 20. Qh4 {[%emt 0:00:02]} Rd8 {[%emt 0:00:07]} 21. Rfd1 {
[%emt 0:00:08]} Bg6 {[%emt 0:00:03]} 22. Ne4 {[%emt 0:00:09]} Qe7 {[%emt 0:01:
02]} 23. Nxf6+ {[%emt 0:00:24]} Kg7 {[%emt 0:00:01]} 24. Bxc6 {[%emt 0:00:02]}
d2 {[%emt 0:00:15]} 25. Rc3 {[%emt 0:01:01]} bxc6 {[%emt 0:00:01]} 26. Rxc6 {
[%emt 0:00:01]} Re6 {[%emt 0:00:07]} 27. Rxe6 {[%emt 0:00:06]} fxe6 {[%emt 0:
00:35]} 28. Nh5+ {[%emt 0:00:08]} Kf7 {[%emt 0:00:00]} 29. Qf4+ {[%emt 0:00:06]
} Kg8 {[%emt 0:00:00]} 30. Nf6+ {[%emt 0:00:07]} Kg7 {[%emt 0:00:00]} 31. Ng4 {
[%emt 0:00:02]} Bc2 {[%emt 0:00:27]} 32. Qh6+ {[%emt 0:00:31]} Kh8 {[%emt 0:00:
03]} 33. Ne5 {[%emt 0:00:02]} Kg8 {[%emt 0:00:15]} 34. Nc6 {[%emt 0:00:04]} Qg7
{[%emt 0:00:01]} 35. Qxe6+ {[%emt 0:00:01]} Kh8 {[%emt 0:00:02]} 36. Nxd8 {
[%emt 0:00:02]} Bxd1 {[%emt 0:00:02]} 37. Nf7+ {[%emt 0:00:04]} Kg8 {[%emt 0:
00:02]} 38. Nd6+ {[%emt 0:00:04]} Kh8 {[%emt 0:00:02]} 39. Qc8+ {[%emt 0:00:09]
} Qg8 {[%emt 0:00:02]} 40. Qc3+ {[%emt 0:00:01]} Qg7 {[%emt 0:00:00]} 41. Qxd2
{[%emt 0:00:02]} Bg4 {[%emt 0:00:01]} 42. Qd4 {[%emt 0:00:03]} Qxd4 {[%emt 0:
00:04]} 43. exd4 {[%emt 0:00:01]} Be2 {[%emt 0:00:01]} 44. f4 {[%emt 0:00:03]}
Kg7 {[%emt 0:00:01]} 45. Kf2 {[%emt 0:00:00]} Bd3 {[%emt 0:00:01]} 46. Ke3 {
[%emt 0:00:01]} Bf1 {[%emt 0:00:01]} 47. d5 {[%emt 0:00:01]} Kf6 {[%emt 0:00:
02]} 48. Kd4 {[%emt 0:00:01]} h5 {[%emt 0:00:01]} 49. Kc5 {[%emt 0:00:01]} Ke7
{[%emt 0:00:01]} 50. Nxb5 {[%emt 0:00:02]} 1-0

[Event "FIDE Women World Blitz 2021"]
[Site "Warsaw"]
[Date "2021.12.29"]
[Round "8.1"]
[White "Movsesian, Julia"]
[Black "Wikar, Martyna"]
[Result "0-1"]
[ECO "B31"]
[WhiteElo "2322"]
[BlackElo "1899"]
[Annotator "NA"]
[PlyCount "64"]
[EventDate "2021.12.29"]
[EventType "swiss"]
[EventCountry "POL"]
[Tiebreak "Cut1 Buchholz"]
[SourceTitle "playchess.com"]
[Source "ChessBase"]
[SourceQuality "1"]
[TimeControl "180+2"]

1. e4 {[%emt 0:00:01]} c5 {[%emt 0:00:01]} 2. Nc3 {[%emt 0:00:02]} Nc6 {
[%emt 0:00:01]} 3. Bb5 {[%emt 0:00:01]} g6 {[%emt 0:00:03]} 4. Bxc6 {[%emt 0:
00:08]} dxc6 {[%emt 0:00:02]} 5. d3 {[%emt 0:00:06]} e5 {[%emt 0:00:09]} 6. h3
{[%emt 0:00:02]} Bg7 {[%emt 0:00:02]} 7. Nf3 {[%emt 0:00:01]} Ne7 {[%emt 0:00:
08]} 8. Be3 {[%emt 0:00:03]} b6 {[%emt 0:00:00]} 9. Qd2 {[%emt 0:00:02]} O-O {
[%emt 0:00:16]} 10. O-O {[%emt 0:00:04]} Qc7 {[%emt 0:00:02]} 11. a3 {[%emt 0:
00:02]} f5 {[%emt 0:00:05]} 12. exf5 {[%emt 0:00:07]} gxf5 {[%emt 0:00:02]} 13.
Bh6 {[%emt 0:00:03]} Ng6 {[%emt 0:00:05]} 14. Rae1 {[%emt 0:00:02]} Bd7 {
[%emt 0:00:20]} 15. Bxg7 {[%emt 0:00:17]} Kxg7 {[%emt 0:00:01]} 16. Re3 {
[%emt 0:00:00]} Rae8 {[%emt 0:00:07]} 17. Rfe1 {[%emt 0:00:01]} Qd6 {[%emt 0:
00:08]} 18. b3 {[%emt 0:00:22]} Qf6 {[%emt 0:00:10]} 19. Nh2 {[%emt 0:00:09]}
Qg5 {[%emt 0:00:22]} 20. Qd1 {[%emt 0:00:10]} f4 {[%emt 0:00:10]} 21. Ne4 {
[%emt 0:00:01]} Qh6 {[%emt 0:00:18]} 22. R3e2 {[%emt 0:00:22]} f3 {[%emt 0:00:
14]} 23. Re3 {[%emt 0:00:06]} fxg2 {[%emt 0:00:16]} 24. Ng4 {[%emt 0:00:18]}
Qh4 {[%emt 0:00:20]} 25. Rg3 {[%emt 0:00:08]} Kh8 {[%emt 0:00:01]} 26. Kxg2 {
[%emt 0:00:17]} Nf4+ {[%emt 0:00:04]} 27. Kh2 {[%emt 0:00:05]} Nh5 {[%emt 0:00:
07]} 28. Rg2 {[%emt 0:00:05]} Rf4 {[%emt 0:00:12]} 29. Reg1 {[%emt 0:00:09]}
Ref8 {[%emt 0:00:02]} 30. Qe2 {[%emt 0:00:03]} Rf3 {[%emt 0:00:03]} 31. Rg3 {
[%emt 0:00:13]} Bxg4 {[%emt 0:00:03]} 32. Nd6 {[%emt 0:00:11]} Rxf2+ {[%emt 0:
00:04]} 0-1

[Event "FIDE Women World Blitz 2021"]
[Site "Warsaw"]
[Date "2021.12.29"]
[Round "8.2"]
[White "Goryachkina, Aleksandra"]
[Black "Abdumalik, Zhansaya"]
[Result "1/2-1/2"]
[ECO "D85"]
[WhiteElo "2604"]
[BlackElo "2507"]
[Annotator "ChessBase"]
[PlyCount "77"]
[EventDate "2021.12.29"]
[EventType "swiss"]
[EventCountry "POL"]
[Tiebreak "Cut1 Buchholz"]
[SourceTitle "playchess.com"]
[Source "ChessBase"]
[SourceQuality "1"]
[TimeControl "180+2"]

1. d4 {[%emt 0:00:01]} Nf6 {[%emt 0:00:01]} 2. c4 {[%emt 0:00:02]} g6 {[%emt 0:
00:01]} 3. Nc3 {[%emt 0:00:01]} d5 {[%emt 0:00:02]} 4. cxd5 {[%emt 0:00:02]}
Nxd5 {[%emt 0:00:01]} 5. e4 {[%emt 0:00:01]} Nxc3 {[%emt 0:00:01]} 6. bxc3 {
[%emt 0:00:01]} Bg7 {[%emt 0:00:02]} 7. Nf3 {[%emt 0:00:03]} c5 {[%emt 0:00:01]
} 8. Bb5+ {[%emt 0:00:00]} Nc6 {[%emt 0:00:02]} 9. O-O {[%emt 0:00:04]} O-O {
[%emt 0:00:09]} 10. Bxc6 {[%emt 0:00:02]} bxc6 {[%emt 0:00:02]} 11. Qc2 {
[%emt 0:00:02]} Qc7 {[%emt 0:00:49]} 12. Ba3 {[%emt 0:00:27]} cxd4 {[%emt 0:00:
22]} 13. cxd4 {[%emt 0:00:01]} Bg4 {[%emt 0:00:01]} 14. Ne5 {[%emt 0:00:02]}
Bxe5 {[%emt 0:00:06]} 15. dxe5 {[%emt 0:00:01]} Qxe5 {[%emt 0:00:01]} 16. h3 {
[%emt 0:00:31]} Bd7 {[%emt 0:00:13]} 17. Rad1 {[%emt 0:00:06]} Rfd8 {[%emt 0:
00:09]} 18. f4 {[%emt 0:00:06]} Qe6 {[%emt 0:00:06]} 19. Kh1 {[%emt 0:00:16]}
Be8 {[%emt 0:00:04]} 20. f5 {[%emt 0:00:05]} Qe5 {[%emt 0:00:07]} 21. Bb2 {
[%emt 0:00:03]} Qa5 {[%emt 0:00:11]} 22. f6 {[%emt 0:00:29]} exf6 {[%emt 0:00:
07]} 23. Bxf6 {[%emt 0:00:03]} Rxd1 {[%emt 0:00:04]} 24. Rxd1 {[%emt 0:00:02]}
Qh5 {[%emt 0:00:08]} 25. e5 {[%emt 0:00:05]} Rb8 {[%emt 0:00:09]} 26. Qd2 {
[%emt 0:00:08]} c5 {[%emt 0:00:08]} 27. Kh2 {[%emt 0:00:07]} c4 {[%emt 0:00:04]
} 28. g4 {[%emt 0:00:15]} c3 {[%emt 0:00:01]} 29. Qd8 {[%emt 0:00:28]} Qh6 {
[%emt 0:00:32]} 30. Qxb8 {[%emt 0:00:17]} Qf4+ {[%emt 0:00:00]} 31. Kg2 {
[%emt 0:00:03]} Qe4+ {[%emt 0:00:01]} 32. Kf2 {[%emt 0:00:06]} Qf4+ {[%emt 0:
00:01]} 33. Ke2 {[%emt 0:00:04]} Qe4+ {[%emt 0:00:01]} 34. Kf2 {[%emt 0:00:01]}
Qf4+ {[%emt 0:00:01]} 35. Kg2 {[%emt 0:00:00]} Qe4+ {[%emt 0:00:01]} 36. Kg3 {
[%emt 0:00:01]} Qe3+ {[%emt 0:00:01]} 37. Kg2 {[%emt 0:00:04]} Qe2+ {[%emt 0:
00:03]} 38. Kg3 {[%emt 0:00:02]} Qe3+ {[%emt 0:00:01]} 39. Kg2 {[%emt 0:00:01]}
1/2-1/2

[Event "FIDE Women World Blitz 2021"]
[Site "Warsaw"]
[Date "2021.12.29"]
[Round "8.2"]
[White "Kurmangaliyeva, Liya"]
[Black "Nurgali, Nazerke"]
[Result "1-0"]
[ECO "D37"]
[WhiteElo "2222"]
[BlackElo "2267"]
[Annotator "NA"]
[PlyCount "109"]
[EventDate "2021.12.29"]
[EventType "swiss"]
[EventCountry "POL"]
[Tiebreak "Cut1 Buchholz"]
[SourceTitle "playchess.com"]
[Source "ChessBase"]
[SourceQuality "1"]
[TimeControl "180+2"]

1. d4 {[%emt 0:00:02]} Nf6 {[%emt 0:00:00]} 2. c4 {[%emt 0:00:02]} e6 {[%emt 0:
00:01]} 3. Nf3 {[%emt 0:00:01]} d5 {[%emt 0:00:01]} 4. Nc3 {[%emt 0:00:02]} Be7
{[%emt 0:00:01]} 5. Bf4 {[%emt 0:00:04]} O-O {[%emt 0:00:02]} 6. e3 {[%emt 0:
00:05]} b6 {[%emt 0:00:01]} 7. cxd5 {[%emt 0:00:03]} exd5 {[%emt 0:00:05]} 8.
Bd3 {[%emt 0:00:03]} c5 {[%emt 0:00:02]} 9. O-O {[%emt 0:00:10]} Bg4 {[%emt 0:
00:07]} 10. h3 {[%emt 0:00:09]} Bh5 {[%emt 0:00:01]} 11. Be2 {[%emt 0:00:16]}
Nc6 {[%emt 0:00:26]} 12. Rc1 {[%emt 0:00:07]} Rc8 {[%emt 0:00:04]} 13. Ne5 {
[%emt 0:00:37]} Bxe2 {[%emt 0:00:07]} 14. Qxe2 {[%emt 0:00:04]} cxd4 {[%emt 0:
00:06]} 15. Nxc6 {[%emt 0:00:02]} Rxc6 {[%emt 0:00:02]} 16. exd4 {[%emt 0:00:
02]} Re6 {[%emt 0:00:16]} 17. Qb5 {[%emt 0:00:12]} h6 {[%emt 0:00:18]} 18. Be5
{[%emt 0:00:02]} Ne4 {[%emt 0:00:43]} 19. Nxd5 {[%emt 0:00:14]} Bd6 {[%emt 0:
00:35]} 20. Nf4 {[%emt 0:00:14]} Ree8 {[%emt 0:00:05]} 21. Rfe1 {[%emt 0:00:06]
} Bxe5 {[%emt 0:00:10]} 22. dxe5 {[%emt 0:00:04]} Nc5 {[%emt 0:00:11]} 23. b4 {
[%emt 0:00:07]} Ne6 {[%emt 0:00:04]} 24. Nd5 {[%emt 0:00:09]} Qg5 {[%emt 0:00:
02]} 25. Re3 {[%emt 0:00:15]} Nd4 {[%emt 0:00:07]} 26. Qd3 {[%emt 0:00:04]} Nf5
{[%emt 0:00:02]} 27. Re4 {[%emt 0:00:06]} Qxc1+ {[%emt 0:00:01]} 28. Kh2 {
[%emt 0:00:09]} Qc6 {[%emt 0:00:02]} 29. Rg4 {[%emt 0:00:07]} Qe6 {[%emt 0:00:
09]} 30. Nf6+ {[%emt 0:00:07]} Kh8 {[%emt 0:00:02]} 31. Nxe8 {[%emt 0:00:03]}
Qxe5+ {[%emt 0:00:01]} 32. f4 {[%emt 0:00:03]} Qxe8 {[%emt 0:00:03]} 33. Qxf5 {
[%emt 0:00:01]} Qe7 {[%emt 0:00:02]} 34. Qb5 {[%emt 0:00:05]} Rd8 {[%emt 0:00:
02]} 35. Qc4 {[%emt 0:00:03]} a5 {[%emt 0:00:02]} 36. bxa5 {[%emt 0:00:02]}
bxa5 {[%emt 0:00:01]} 37. Qc3 {[%emt 0:00:00]} f5 {[%emt 0:00:04]} 38. Rg6 {
[%emt 0:00:03]} Kh7 {[%emt 0:00:02]} 39. Rc6 {[%emt 0:00:02]} Qe4 {[%emt 0:00:
04]} 40. Rc4 {[%emt 0:00:03]} Qe2 {[%emt 0:00:03]} 41. Rc7 {[%emt 0:00:02]} Rg8
{[%emt 0:00:02]} 42. Qe5 {[%emt 0:00:03]} Qxa2 {[%emt 0:00:02]} 43. Qxf5+ {
[%emt 0:00:01]} Kh8 {[%emt 0:00:01]} 44. Ra7 {[%emt 0:00:03]} a4 {[%emt 0:00:
01]} 45. Qb5 {[%emt 0:00:04]} a3 {[%emt 0:00:01]} 46. Qb4 {[%emt 0:00:01]} Qf2
{[%emt 0:00:04]} 47. Rxa3 {[%emt 0:00:01]} h5 {[%emt 0:00:02]} 48. Rf3 {
[%emt 0:00:01]} Qe2 {[%emt 0:00:01]} 49. Qd4 {[%emt 0:00:03]} Qe1 {[%emt 0:00:
04]} 50. Re3 {[%emt 0:00:01]} Qf2 {[%emt 0:00:02]} 51. Qe5 {[%emt 0:00:01]} Qh4
{[%emt 0:00:02]} 52. g3 {[%emt 0:00:04]} Qf6 {[%emt 0:00:02]} 53. Qxh5+ {
[%emt 0:00:01]} Qh6 {[%emt 0:00:01]} 54. Qxh6+ {[%emt 0:00:02]} gxh6 {[%emt 0:
00:01]} 55. Re7 {[%emt 0:00:01]} 1-0

[Event "FIDE Women World Blitz 2021"]
[Site "Warsaw"]
[Date "2021.12.29"]
[Round "8.3"]
[White "Vaishali R"]
[Black "Gunina, Valentina"]
[Result "1-0"]
[ECO "D00"]
[WhiteElo "2405"]
[BlackElo "2480"]
[Annotator "ChessBase"]
[PlyCount "39"]
[EventDate "2021.12.29"]
[EventType "swiss"]
[EventCountry "POL"]
[Tiebreak "Cut1 Buchholz"]
[SourceTitle "playchess.com"]
[Source "ChessBase"]
[SourceQuality "1"]
[TimeControl "180+2"]

1. d4 {[%emt 0:00:03]} d5 {[%emt 0:00:01]} 2. Bf4 {[%emt 0:00:01]} c5 {[%emt 0:
00:01]} 3. e3 {[%emt 0:00:01]} Nc6 {[%emt 0:00:01]} 4. Nf3 {[%emt 0:00:12]} Bg4
{[%emt 0:00:07]} 5. Nbd2 {[%emt 0:00:19]} e6 {[%emt 0:00:05]} 6. h3 {[%emt 0:
00:05]} Bh5 {[%emt 0:00:02]} 7. c3 {[%emt 0:00:04]} Bd6 {[%emt 0:00:02]} 8.
Bxd6 {[%emt 0:00:15]} Qxd6 {[%emt 0:00:01]} 9. Qb3 {[%emt 0:00:01]} Nge7 {
[%emt 0:00:12]} 10. Qa3 {[%emt 0:00:17]} b6 {[%emt 0:00:01]} 11. Be2 {[%emt 0:
00:12]} O-O {[%emt 0:00:02]} 12. Nb3 {[%emt 0:00:09]} Qc7 {[%emt 0:00:04]} 13.
dxc5 {[%emt 0:00:03]} Nc8 {[%emt 0:00:07]} 14. O-O {[%emt 0:00:08]} a5 {
[%emt 0:00:09]} 15. cxb6 {[%emt 0:00:07]} Nxb6 {[%emt 0:00:02]} 16. Nbd4 {
[%emt 0:00:02]} Rfc8 {[%emt 0:00:35]} 17. Nxc6 {[%emt 0:00:10]} Bxf3 {[%emt 0:
00:03]} 18. Ne7+ {[%emt 0:00:03]} Kh8 {[%emt 0:00:01]} 19. Nxc8 {[%emt 0:00:09]
} Bxe2 {[%emt 0:00:02]} 20. Qf8# {[%emt 0:00:02]} 1-0